[Event "FIDE World Cup 2013"]
[Site "TromsÃ¸"]
[Date "2013.08.13"]
[Round "1.3"]
[White "Sambuev, Bator"]
[Black "Morozevich, Alexander"]
[Result "0-1"]
[ECO "A48"]
[WhiteElo "2530"]
[BlackElo "2736"]
[PlyCount "98"]
[EventDate "2013.??.??"]
[EventCountry "NOR"]
[TimeControl "1500+10"]

1. d4 {[%emt 0:00:00]} Nf6 {[%emt 0:00:00]} 2. Nf3 {[%emt 0:00:00]} g6 {[%emt
0:00:00]} 3. Bg5 {[%emt 0:00:00]} Bg7 {[%emt 0:00:00]} 4. Nbd2 {[%emt 0:00:00]}
d5 {[%emt 0:00:00]} 5. e3 {[%emt 0:00:01]} O-O {[%emt 0:00:01]} 6. Be2 {[%emt
0:00:03]} Nbd7 {[%emt 0:00:01]} 7. O-O {[%emt 0:00:03]} c5 {[%emt 0:00:33]} 8.
c3 {[%emt 0:00:01]} b6 {[%emt 0:00:01]} 9. Qa4 {[%emt 0:00:07]} Bb7 {[%emt 0:
00:01]} 10. Rfd1 {[%emt 0:00:03]} a6 {[%emt 0:00:12]} 11. Qa3 {[%emt 0:00:06]}
h6 {[%emt 0:00:22]} 12. Bh4 {[%emt 0:00:01]} Rc8 {[%emt 0:00:32]} 13. Rac1 {
[%emt 0:00:03]} b5 {[%emt 0:00:09]} 14. h3 {[%emt 0:02:54]} Re8 {[%emt 0:00:36]
} 15. Bg3 {[%emt 0:00:08]} c4 {[%emt 0:01:34]} 16. b3 {[%emt 0:00:02]} Nb6 {
[%emt 0:00:50]} 17. Ne5 {[%emt 0:00:10]} Nfd7 {[%emt 0:00:11]} 18. Ndf3 {[%emt
0:00:55]} Nf6 {[%emt 0:00:29]} 19. Nd2 {[%emt 0:00:15]} Nfd7 {[%emt 0:00:01]}
20. Nxd7 {[%emt 0:00:36]} Nxd7 {[%emt 0:00:39]} 21. bxc4 {[%emt 0:00:25]} dxc4
{[%emt 0:00:18]} 22. Bf3 {[%emt 0:00:22]} Bxf3 {[%emt 0:00:18]} 23. Nxf3 {
[%emt 0:00:03]} Qb6 {[%emt 0:00:01]} 24. e4 {[%emt 0:00:10]} Qb7 {[%emt 0:00:
48]} 25. Re1 {[%emt 0:00:08]} Nf6 {[%emt 0:00:27]} 26. Nd2 {[%emt 0:00:27]} Nh5
{[%emt 0:00:13]} 27. Bh2 {[%emt 0:00:02]} e5 {[%emt 0:00:00]} 28. g4 {[%emt 0:
00:29]} exd4 {[%emt 0:01:41]} 29. gxh5 {[%emt 0:00:45]} dxc3 {[%emt 0:00:00]}
30. Nf1 {[%emt 0:00:03]} b4 {[%emt 0:01:35]} 31. Qa5 {[%emt 0:00:05]} Qb5 {
[%emt 0:06:15]} 32. Qxb5 {[%emt 0:00:09]} axb5 {[%emt 0:00:01]} 33. e5 {[%emt
0:00:18]} b3 {[%emt 0:00:32]} 34. Rxc3 {[%emt 0:00:20]} b4 {[%emt 0:00:01]} 35.
Rxc4 {[%emt 0:01:40]} Rxc4 {[%emt 0:00:14]} 36. axb3 {[%emt 0:00:01]} Rc3 {
[%emt 0:00:02]} 37. hxg6 {[%emt 0:00:02]} fxg6 {[%emt 0:00:00]} 38. Nd2 {[%emt
0:00:27]} Rd3 {[%emt 0:00:31]} 39. Re2 {[%emt 0:00:32]} Kf7 {[%emt 0:01:42]}
40. Kg2 {[%emt 0:00:11]} Ke6 {[%emt 0:00:08]} 41. Ne4 {[%emt 0:00:04]} Rc8 {
[%emt 0:00:25]} 42. h4 {[%emt 0:00:37]} Rxb3 {[%emt 0:00:27]} 43. f4 {[%emt 0:
00:03]} Rd3 {[%emt 0:01:23]} 44. Bg1 {[%emt 0:00:10]} Bf8 {[%emt 0:00:08]} 45.
h5 {[%emt 0:00:23]} gxh5 {[%emt 0:01:37]} 46. Ng3 {[%emt 0:00:18]} b3 {[%emt 0:
00:05]} 47. f5+ {[%emt 0:00:02]} Kd5 {[%emt 0:00:00]} 48. Nxh5 {[%emt 0:00:15]}
Rc2 {[%emt 0:00:15]} 49. Nf4+ {[%emt 0:03:10]} Kc4 {[%emt 0:00:06]} 0-1

[Event "FIDE World Cup 2013"]
[Site "TromsÃ¸"]
[Date "2013.08.13"]
[Round "1.3"]
[White "Adhiban, B."]
[Black "Alekseev, Evgeny"]
[Result "1-0"]
[ECO "E10"]
[WhiteElo "2567"]
[BlackElo "2714"]
[PlyCount "80"]
[EventDate "2013.??.??"]
[EventCountry "NOR"]
[TimeControl "1500+10"]

1. d4 {[%emt 0:00:00]} Nf6 {[%emt 0:00:00]} 2. c4 {[%emt 0:00:00]} e6 {[%emt 0:
00:00]} 3. Nf3 {[%emt 0:00:00]} d5 {[%emt 0:00:54]} 4. g3 {[%emt 0:00:04]} Bb4+
{[%emt 0:00:45]} 5. Nc3 {[%emt 0:00:03]} O-O {[%emt 0:01:13]} 6. Bg2 {[%emt 0:
00:02]} dxc4 {[%emt 0:00:53]} 7. O-O {[%emt 0:00:03]} Nc6 {[%emt 0:00:22]} 8.
a3 {[%emt 0:00:04]} Be7 {[%emt 0:01:26]} 9. e4 {[%emt 0:00:02]} Na5 {[%emt 0:
00:46]} 10. Qe2 {[%emt 0:00:24]} c6 {[%emt 0:04:40]} 11. Bf4 {[%emt 0:00:42]}
b5 {[%emt 0:00:38]} 12. Rad1 {[%emt 0:00:03]} Bb7 {[%emt 0:00:22]} 13. h4 {
[%emt 0:01:57]} Re8 {[%emt 0:02:23]} 14. Rfe1 {[%emt 0:01:20]} Bf8 {[%emt 0:02:
00]} 15. Bg5 {[%emt 0:02:45]} h6 {[%emt 0:00:35]} 16. e5 {[%emt 0:02:43]} hxg5
{[%emt 0:00:09]} 17. Nxg5 {[%emt 0:00:28]} Qe7 {[%emt 0:04:10]} 18. Qc2 {[%emt
0:04:21]} g6 {[%emt 0:00:14]} 19. exf6 {[%emt 0:00:02]} Qxf6 {[%emt 0:00:02]}
20. Re3 {[%emt 0:00:01]} Qg7 {[%emt 0:01:42]} 21. Rf3 {[%emt 0:00:41]} f6 {
[%emt 0:00:48]} 22. Nce4 {[%emt 0:01:14]} f5 {[%emt 0:00:24]} 23. Nc5 {[%emt 0:
00:14]} Bxc5 {[%emt 0:00:26]} 24. dxc5 {[%emt 0:00:04]} Nb3 {[%emt 0:00:07]}
25. Rxb3 {[%emt 0:02:00]} cxb3 {[%emt 0:00:01]} 26. Qxb3 {[%emt 0:00:03]} Re7 {
[%emt 0:00:17]} 27. Rd6 {[%emt 0:01:28]} Rae8 {[%emt 0:00:05]} 28. Bxc6 {[%emt
0:00:13]} Bxc6 {[%emt 0:00:09]} 29. Rxc6 {[%emt 0:00:01]} Qe5 {[%emt 0:00:52]}
30. Qxb5 {[%emt 0:00:52]} Kg7 {[%emt 0:01:21]} 31. Rd6 {[%emt 0:01:11]} f4 {
[%emt 0:00:44]} 32. g4 {[%emt 0:00:53]} f3 {[%emt 0:00:20]} 33. Qb4 {[%emt 0:
02:15]} Rf8 {[%emt 0:00:42]} 34. c6 {[%emt 0:00:37]} Kg8 {[%emt 0:00:54]} 35.
Rd7 {[%emt 0:01:17]} Ree8 {[%emt 0:00:09]} 36. Qe4 {[%emt 0:02:01]} Qxe4 {
[%emt 0:00:05]} 37. Nxe4 {[%emt 0:00:01]} Rf4 {[%emt 0:00:05]} 38. c7 {[%emt 0:
00:10]} Rxg4+ {[%emt 0:00:18]} 39. Kh2 {[%emt 0:00:07]} Rxe4 {[%emt 0:00:08]}
40. Rd8 {[%emt 0:00:02]} Rd4 1-0

[Event "FIDE World Cup 2013"]
[Site "TromsÃ¸"]
[Date "2013.08.13"]
[Round "1.3"]
[White "Amin, Bassem"]
[Black "Safarli, Eltaj"]
[Result "1-0"]
[ECO "B30"]
[WhiteElo "2650"]
[BlackElo "2660"]
[PlyCount "94"]
[EventDate "2013.??.??"]
[EventCountry "NOR"]
[TimeControl "1500+10"]

1. e4 {[%emt 0:00:00]} c5 {[%emt 0:00:00]} 2. Nf3 {[%emt 0:00:00]} Nc6 {[%emt
0:00:00]} 3. d3 {[%emt 0:00:00]} g6 {[%emt 0:00:06]} 4. g3 {[%emt 0:00:00]} Bg7
{[%emt 0:00:02]} 5. Bg2 {[%emt 0:00:01]} d6 {[%emt 0:00:01]} 6. O-O {[%emt 0:
00:03]} e5 {[%emt 0:00:12]} 7. c3 {[%emt 0:00:02]} Nge7 {[%emt 0:00:02]} 8. Be3
{[%emt 0:00:02]} O-O {[%emt 0:00:11]} 9. Nh4 {[%emt 0:00:02]} b6 {[%emt 0:00:
17]} 10. f4 {[%emt 0:01:40]} exf4 {[%emt 0:00:17]} 11. gxf4 {[%emt 0:00:02]} d5
{[%emt 0:00:06]} 12. e5 {[%emt 0:02:42]} Ba6 {[%emt 0:01:12]} 13. Re1 {[%emt 0:
03:15]} d4 {[%emt 0:03:25]} 14. cxd4 {[%emt 0:00:02]} Rc8 {[%emt 0:01:25]} 15.
dxc5 {[%emt 0:00:49]} Nb4 {[%emt 0:01:27]} 16. Nc3 bxc5 {[%emt 0:01:03]} 17.
Qa4 {[%emt 0:04:09]} Bxd3 {[%emt 0:03:38]} 18. Rad1 {[%emt 0:00:37]} Nec6 {
[%emt 0:03:44]} 19. Bf2 {[%emt 0:04:12]} Nd4 {[%emt 0:02:34]} 20. Rd2 {[%emt 0:
00:20]} Bc2 {[%emt 0:01:41]} 21. Qxa7 {[%emt 0:02:01]} Nd3 {[%emt 0:00:05]} 22.
Rxd3 {[%emt 0:00:37]} Bxd3 {[%emt 0:00:01]} 23. Rd1 {[%emt 0:00:31]} Bc4 {
[%emt 0:01:13]} 24. Kh1 {[%emt 0:00:14]} Qc7 {[%emt 0:00:53]} 25. Qxc7 {[%emt
0:00:19]} Rxc7 {[%emt 0:00:01]} 26. b3 {[%emt 0:03:03]} Be6 {[%emt 0:00:15]}
27. Ne4 {[%emt 0:00:27]} Bd5 {[%emt 0:01:31]} 28. Nf6+ {[%emt 0:00:43]} Bxf6 {
[%emt 0:00:02]} 29. Bxd5 {[%emt 0:00:01]} Bxh4 {[%emt 0:02:28]} 30. Bxh4 {
[%emt 0:00:02]} Nf5 {[%emt 0:01:02]} 31. Bf2 {[%emt 0:00:34]} Kg7 {[%emt 0:00:
10]} 32. Bc4 {[%emt 0:00:05]} f6 {[%emt 0:00:46]} 33. e6 {[%emt 0:00:08]} Re8 {
[%emt 0:00:23]} 34. a4 {[%emt 0:00:21]} Kf8 {[%emt 0:00:01]} 35. a5 {[%emt 0:
00:06]} Ke7 {[%emt 0:00:07]} 36. Rd5 {[%emt 0:00:02]} Nd4 {[%emt 0:00:21]} 37.
Bxd4 {[%emt 0:02:06]} cxd4 {[%emt 0:00:01]} 38. Rxd4 {[%emt 0:00:01]} Rb8 {
[%emt 0:00:19]} 39. a6 {[%emt 0:00:37]} Rxc4 {[%emt 0:00:17]} 40. Rxc4 {[%emt
0:00:01]} Rxb3 {[%emt 0:00:01]} 41. Ra4 {[%emt 0:00:03]} Rb8 {[%emt 0:00:06]}
42. a7 {[%emt 0:00:01]} Ra8 43. Ra6 Kd8 {[%emt 0:00:25]} 44. Kg2 Kc7 45. Kf3 {
[%emt 0:00:10]} Kb7 {[%emt 0:00:01]} 46. Ra2 {[%emt 0:00:02]} Kc6 {[%emt 0:00:
13]} 47. f5 {[%emt 0:00:04]} Kd5 {Ke4+} 1-0

[Event "FIDE World Cup 2013"]
[Site "TromsÃ¸"]
[Date "2013.08.13"]
[Round "1.3"]
[White "Bologan, Viktor"]
[Black "Hracek, Zbynek"]
[Result "1/2-1/2"]
[ECO "C54"]
[WhiteElo "2672"]
[BlackElo "2635"]
[PlyCount "81"]
[EventDate "2013.??.??"]
[EventCountry "NOR"]
[TimeControl "1500+10"]

1. e4 {[%emt 0:00:00]} e5 {[%emt 0:00:00]} 2. Nf3 {[%emt 0:00:00]} Nc6 {[%emt
0:00:00]} 3. Bc4 {[%emt 0:00:00]} Bc5 {[%emt 0:00:00]} 4. c3 {[%emt 0:00:00]}
Nf6 {[%emt 0:00:00]} 5. d4 {[%emt 0:00:00]} exd4 {[%emt 0:00:00]} 6. e5 {[%emt
0:00:02]} d5 {[%emt 0:00:07]} 7. Bb5 {[%emt 0:00:02]} Ne4 {[%emt 0:00:02]} 8.
cxd4 {[%emt 0:00:02]} Bb6 {[%emt 0:00:03]} 9. Nc3 {[%emt 0:00:03]} O-O {[%emt
0:00:12]} 10. Be3 Bg4 {[%emt 0:00:07]} 11. h3 {[%emt 0:00:31]} Bh5 {[%emt 0:00:
50]} 12. Qb3 {[%emt 0:00:20]} Bxf3 {[%emt 0:01:37]} 13. gxf3 {[%emt 0:00:02]}
Nxf2 {[%emt 0:01:03]} 14. Bxf2 {[%emt 0:00:18]} Nxd4 {[%emt 0:00:03]} 15. Bxd4
{[%emt 0:00:04]} Qh4+ {[%emt 0:00:05]} 16. Kd2 {[%emt 0:00:05]} Qxd4+ {[%emt 0:
02:01]} 17. Kc2 {[%emt 0:00:01]} c6 {[%emt 0:00:16]} 18. Bd3 {[%emt 0:00:03]}
Rae8 {[%emt 0:00:56]} 19. Rad1 {[%emt 0:00:18]} Qf2+ {[%emt 0:00:38]} 20. Kb1 {
[%emt 0:00:10]} Rxe5 {[%emt 0:00:25]} 21. Rhf1 {[%emt 0:01:47]} Qe3 {[%emt 0:
01:34]} 22. Qc2 {[%emt 0:02:16]} Rh5 {[%emt 0:00:40]} 23. Rde1 {[%emt 0:02:00]}
Qf4 {[%emt 0:01:23]} 24. Ne2 {[%emt 0:02:41]} Qf6 {[%emt 0:00:20]} 25. Ng3 {
[%emt 0:00:41]} Rxh3 {[%emt 0:01:12]} 26. Qg2 {[%emt 0:02:31]} Rh4 {[%emt 0:01:
53]} 27. Nf5 {[%emt 0:03:59]} Rh5 {[%emt 0:00:10]} 28. Rh1 {[%emt 0:02:22]}
Rxh1 {[%emt 0:00:16]} 29. Qxh1 {[%emt 0:00:04]} g6 {[%emt 0:04:15]} 30. Qh6 {
[%emt 0:00:26]} Bd8 {[%emt 0:00:01]} 31. Rh1 {[%emt 0:01:25]} Qh8 {[%emt 0:00:
02]} 32. Qe3 {[%emt 0:00:28]} Qf6 {[%emt 0:01:07]} 33. Nh6+ {[%emt 0:00:51]}
Kh8 {[%emt 0:02:30]} 34. Ng4 {[%emt 0:00:37]} Qg7 {[%emt 0:00:08]} 35. Qxa7 {
[%emt 0:00:21]} f5 {[%emt 0:00:13]} 36. Nf2 {[%emt 0:00:38]} Bf6 {[%emt 0:00:
10]} 37. Nh3 {[%emt 0:01:40]} Qe7 {[%emt 0:00:37]} 38. Qg1 {[%emt 0:00:42]} Qb4
{[%emt 0:00:34]} 39. Qg2 {[%emt 0:00:07]} Re8 {[%emt 0:00:16]} 40. a3 {[%emt 0:
02:31]} Qd4 {[%emt 0:00:54]} 41. Rd1 {[%emt 0:00:12]} 1/2-1/2

[Event "FIDE World Cup 2013"]
[Site "TromsÃ¸"]
[Date "2013.08.13"]
[Round "1.3"]
[White "Cori, Jorge"]
[Black "Radjabov, Teimour"]
[Result "1-0"]
[ECO "E97"]
[WhiteElo "2543"]
[BlackElo "2733"]
[PlyCount "63"]
[EventDate "2013.??.??"]
[EventCountry "NOR"]
[TimeControl "1500+10"]

1. d4 {[%emt 0:00:00]} Nf6 {[%emt 0:00:00]} 2. c4 {[%emt 0:00:00]} g6 {[%emt 0:
00:00]} 3. Nc3 {[%emt 0:00:00]} Bg7 {[%emt 0:00:00]} 4. e4 {[%emt 0:00:00]} d6
{[%emt 0:00:00]} 5. Nf3 {[%emt 0:00:00]} O-O {[%emt 0:00:00]} 6. Be2 {[%emt 0:
00:00]} e5 {[%emt 0:00:00]} 7. O-O {[%emt 0:00:01]} Nc6 {[%emt 0:00:01]} 8. d5
{[%emt 0:00:02]} Ne7 {[%emt 0:00:02]} 9. b4 {[%emt 0:00:01]} Nh5 {[%emt 0:00:
02]} 10. Re1 {[%emt 0:00:12]} f5 {[%emt 0:00:13]} 11. Ng5 {[%emt 0:00:04]} Nf4
{[%emt 0:00:04]} 12. Bxf4 {[%emt 0:02:21]} exf4 {[%emt 0:00:02]} 13. Rc1 {
[%emt 0:00:09]} h6 {[%emt 0:00:57]} 14. Ne6 {[%emt 0:02:28]} Bxe6 {[%emt 0:00:
01]} 15. dxe6 {[%emt 0:00:01]} Bxc3 {[%emt 0:00:02]} 16. Rxc3 {[%emt 0:00:01]}
fxe4 {[%emt 0:00:01]} 17. Bf1 {[%emt 0:02:06]} e3 {[%emt 0:00:03]} 18. fxe3 {
[%emt 0:01:02]} fxe3 {[%emt 0:00:01]} 19. Rcxe3 {[%emt 0:00:25]} a5 {[%emt 0:
00:01]} 20. b5 {[%emt 0:01:27]} c6 {[%emt 0:00:01]} 21. bxc6 {[%emt 0:01:25]}
bxc6 {[%emt 0:00:05]} 22. Rd3 {[%emt 0:00:07]} Qb6+ {[%emt 0:03:23]} 23. Kh1 {
[%emt 0:00:01]} d5 {[%emt 0:00:01]} 24. cxd5 {[%emt 0:00:01]} cxd5 {[%emt 0:00:
01]} 25. Rxd5 {[%emt 0:04:37]} Nxd5 {[%emt 0:01:44]} 26. Qxd5 {[%emt 0:00:02]}
Rad8 {[%emt 0:00:57]} 27. Qe4 {[%emt 0:00:01]} Rf6 {[%emt 0:02:31]} 28. e7 {
[%emt 0:04:33]} Re8 {[%emt 0:00:02]} 29. Qd5+ {[%emt 0:00:03]} Kg7 {[%emt 0:08:
32]} 30. Qe5 {[%emt 0:01:26]} Qf2 {[%emt 0:00:41]} 31. Bb5 {[%emt 0:01:50]} Kh7
{[%emt 0:00:01]} 32. Qa1 {[%emt 0:00:04]} 1-0

[Event "FIDE World Cup 2013"]
[Site "TromsÃ¸"]
[Date "2013.08.13"]
[Round "1.3"]
[White "Darini, Pouria"]
[Black "Andreikin, Dmitry"]
[Result "0-1"]
[ECO "B12"]
[WhiteElo "2548"]
[BlackElo "2727"]
[PlyCount "88"]
[EventDate "2013.??.??"]
[EventCountry "NOR"]
[TimeControl "1500+10"]

1. e4 {[%emt 0:00:00]} c6 {[%emt 0:00:00]} 2. d4 {[%emt 0:00:00]} d5 {[%emt 0:
00:00]} 3. e5 {[%emt 0:00:18]} Bf5 {[%emt 0:00:00]} 4. Nf3 {[%emt 0:00:07]} e6
{[%emt 0:00:00]} 5. Be2 {[%emt 0:00:03]} Nd7 {[%emt 0:00:00]} 6. O-O {[%emt 0:
00:06]} h6 {[%emt 0:00:02]} 7. Nbd2 {[%emt 0:00:02]} Ne7 {[%emt 0:00:01]} 8.
Nb3 {[%emt 0:00:05]} Nc8 {[%emt 0:00:41]} 9. a4 {[%emt 0:00:32]} Ncb6 {[%emt 0:
01:30]} 10. a5 {[%emt 0:01:53]} Nc4 {[%emt 0:00:01]} 11. Bd3 {[%emt 0:01:16]}
Bb4 {[%emt 0:11:01]} 12. Ra4 {[%emt 0:02:39]} Be7 {[%emt 0:00:31]} 13. Bxc4 {
[%emt 0:01:38]} b5 {[%emt 0:01:20]} 14. Bxb5 {[%emt 0:02:00]} cxb5 {[%emt 0:00:
02]} 15. Ra1 {[%emt 0:00:01]} Qc7 {[%emt 0:00:41]} 16. Ne1 {[%emt 0:00:37]} O-O
{[%emt 0:00:15]} 17. Bd2 {[%emt 0:01:15]} b4 {[%emt 0:01:11]} 18. Nd3 {[%emt 0:
01:54]} Rfc8 {[%emt 0:00:40]} 19. Rc1 {[%emt 0:01:00]} Qc4 {[%emt 0:00:12]} 20.
Be3 {[%emt 0:00:18]} Qb5 {[%emt 0:01:33]} 21. Ndc5 {[%emt 0:04:29]} Bxc5 {
[%emt 0:00:18]} 22. dxc5 {[%emt 0:00:02]} Nxe5 {[%emt 0:00:03]} 23. Nd4 {[%emt
0:00:01]} Qd7 {[%emt 0:00:18]} 24. Nxf5 {[%emt 0:00:32]} exf5 {[%emt 0:00:01]}
25. c4 {[%emt 0:02:16]} bxc3 {[%emt 0:00:26]} 26. Rxc3 {[%emt 0:00:19]} Nc6 {
[%emt 0:01:03]} 27. Rd3 {[%emt 0:00:10]} d4 {[%emt 0:00:08]} 28. Qa4 {[%emt 0:
00:50]} Rd8 {[%emt 0:00:36]} 29. Rfd1 {[%emt 0:00:37]} Rab8 {[%emt 0:00:03]}
30. Qa3 {[%emt 0:01:36]} Qe6 {[%emt 0:00:45]} 31. Bf4 {[%emt 0:00:14]} Rb5 {
[%emt 0:00:05]} 32. Bd6 {[%emt 0:00:45]} a6 {[%emt 0:01:31]} 33. g3 {[%emt 0:
00:37]} Re8 {[%emt 0:00:09]} 34. Qa4 {[%emt 0:00:25]} Qe4 {[%emt 0:00:22]} 35.
b3 {[%emt 0:00:24]} Rxa5 {[%emt 0:00:25]} 36. Qc4 {[%emt 0:00:59]} Ra2 {[%emt
0:00:11]} 37. Qc1 {[%emt 0:00:27]} Re2 {[%emt 0:00:43]} 38. Qf4 {[%emt 0:00:21]
} Qd5 {[%emt 0:00:59]} 39. Qf3 {[%emt 0:00:02]} Re1+ {[%emt 0:00:14]} 40. Rxe1
{[%emt 0:00:11]} Rxe1+ {[%emt 0:00:01]} 41. Kg2 {[%emt 0:00:00]} Re4 {[%emt 0:
00:02]} 42. h4 {[%emt 0:00:19]} g5 {[%emt 0:00:01]} 43. hxg5 {[%emt 0:00:01]}
hxg5 {[%emt 0:00:01]} 44. Kg1 {[%emt 0:00:29]} Nb4 {[%emt 0:00:09]} 0-1

[Event "FIDE World Cup 2013"]
[Site "TromsÃ¸"]
[Date "2013.08.13"]
[Round "1.3"]
[White "Dreev, Aleksey"]
[Black "Azarov, Sergei"]
[Result "1-0"]
[ECO "E32"]
[WhiteElo "2668"]
[BlackElo "2636"]
[PlyCount "119"]
[EventDate "2013.??.??"]
[EventCountry "NOR"]
[TimeControl "1500+10"]

1. d4 {[%emt 0:00:00]} Nf6 {[%emt 0:00:00]} 2. c4 {[%emt 0:00:00]} e6 {[%emt 0:
00:00]} 3. Nc3 {[%emt 0:00:00]} Bb4 {[%emt 0:00:00]} 4. Qc2 {[%emt 0:00:00]}
O-O {[%emt 0:00:00]} 5. Nf3 {[%emt 0:00:02]} c5 {[%emt 0:00:04]} 6. dxc5 {
[%emt 0:00:02]} Na6 {[%emt 0:00:03]} 7. g3 {[%emt 0:00:02]} Nxc5 {[%emt 0:00:
08]} 8. Bg2 {[%emt 0:00:02]} Nce4 {[%emt 0:00:21]} 9. O-O {[%emt 0:00:04]} Nxc3
{[%emt 0:00:04]} 10. bxc3 {[%emt 0:00:01]} Be7 {[%emt 0:00:02]} 11. e4 {[%emt
0:00:03]} d6 {[%emt 0:00:50]} 12. e5 {[%emt 0:00:07]} dxe5 {[%emt 0:00:46]} 13.
Nxe5 {[%emt 0:00:03]} Qc7 {[%emt 0:00:37]} 14. Qe2 {[%emt 0:00:08]} Nd7 {[%emt
0:01:14]} 15. Bf4 {[%emt 0:00:07]} Nxe5 {[%emt 0:00:35]} 16. Bxe5 {[%emt 0:00:
02]} Bd6 {[%emt 0:00:09]} 17. Rfe1 {[%emt 0:00:32]} Rb8 {[%emt 0:02:06]} 18.
Rad1 {[%emt 0:00:57]} Bxe5 {[%emt 0:01:04]} 19. Qxe5 {[%emt 0:00:02]} Qxe5 {
[%emt 0:00:07]} 20. Rxe5 {[%emt 0:00:02]} b6 {[%emt 0:00:43]} 21. c5 {[%emt 0:
00:02]} bxc5 {[%emt 0:08:54]} 22. Rxc5 {[%emt 0:00:07]} Bb7 {[%emt 0:00:01]}
23. Rd7 {[%emt 0:01:29]} Bxg2 {[%emt 0:00:38]} 24. Kxg2 {[%emt 0:00:03]} a6 {
[%emt 0:00:09]} 25. Ra7 {[%emt 0:02:20]} Rfc8 {[%emt 0:00:18]} 26. Rxc8+ {
[%emt 0:00:16]} Rxc8 {[%emt 0:00:01]} 27. Rxa6 {[%emt 0:00:01]} g5 {[%emt 0:00:
02]} 28. Ra3 {[%emt 0:00:10]} Kg7 {[%emt 0:00:16]} 29. Kf3 {[%emt 0:00:27]} f5
{[%emt 0:00:12]} 30. Ke3 {[%emt 0:00:40]} Kf6 {[%emt 0:00:19]} 31. Kd3 {[%emt
0:00:21]} Rd8+ {[%emt 0:01:33]} 32. Kc2 {[%emt 0:00:17]} f4 {[%emt 0:00:23]}
33. c4 {[%emt 0:03:36]} e5 {[%emt 0:00:09]} 34. c5 {[%emt 0:00:20]} e4 {[%emt
0:00:19]} 35. gxf4 {[%emt 0:00:05]} gxf4 {[%emt 0:00:01]} 36. c6 {[%emt 0:00:
48]} Rc8 {[%emt 0:02:57]} 37. Rc3 {[%emt 0:00:07]} Rc7 {[%emt 0:00:03]} 38. a4
{[%emt 0:10:04]} Ke5 {[%emt 0:00:28]} 39. Kd2 {[%emt 0:01:07]} Kd5 {[%emt 0:00:
13]} 40. h4 {[%emt 0:00:56]} h5 {[%emt 0:00:01]} 41. a5 {[%emt 0:00:20]} Kd4 {
[%emt 0:04:37]} 42. a6 {[%emt 0:01:28]} e3+ {[%emt 0:00:30]} 43. fxe3+ {[%emt
0:00:02]} fxe3+ {[%emt 0:00:01]} 44. Rxe3 {[%emt 0:00:08]} Rxc6 {[%emt 0:00:03]
} 45. Ra3 {[%emt 0:00:18]} Rc8 {[%emt 0:00:09]} 46. a7 {[%emt 0:00:03]} Ra8 {
[%emt 0:00:01]} 47. Ra4+ {[%emt 0:00:30]} Kc5 {[%emt 0:00:04]} 48. Ke3 {[%emt
0:00:05]} Kb5 {[%emt 0:01:06]} 49. Ra1 {[%emt 0:00:12]} Kb6 {[%emt 0:00:01]}
50. Kf4 {[%emt 0:00:03]} Kb7 {[%emt 0:00:04]} 51. Kg5 {[%emt 0:00:08]} Rg8+ {
[%emt 0:00:35]} 52. Kxh5 Ka8 53. Ra4 {[%emt 0:00:42]} Rc8 {[%emt 0:00:29]} 54.
Kg6 {[%emt 0:00:38]} Rg8+ {[%emt 0:00:09]} 55. Kh7 {[%emt 0:00:43]} Rc8 {[%emt
0:00:15]} 56. h5 {[%emt 0:00:25]} Rc7+ {[%emt 0:00:01]} 57. Kg6 {[%emt 0:00:04]
} Rc6+ {[%emt 0:00:00]} 58. Kg5 {[%emt 0:00:09]} Rc5+ {[%emt 0:00:01]} 59. Kg4
{[%emt 0:00:23]} Rc6 {[%emt 0:00:01]} 60. Ra5 {[%emt 0:00:11]} 1-0

[Event "FIDE World Cup 2013"]
[Site "TromsÃ¸"]
[Date "2013.08.13"]
[Round "1.3"]
[White "Felgaer, Ruben"]
[Black "Riazantsev, Alexander"]
[Result "1/2-1/2"]
[ECO "B19"]
[WhiteElo "2586"]
[BlackElo "2708"]
[PlyCount "106"]
[EventDate "2013.??.??"]
[EventCountry "NOR"]
[TimeControl "1500+10"]

1. e4 {[%emt 0:00:00]} c6 {[%emt 0:00:00]} 2. d4 {[%emt 0:00:00]} d5 {[%emt 0:
00:00]} 3. Nc3 {[%emt 0:00:00]} dxe4 {[%emt 0:00:00]} 4. Nxe4 {[%emt 0:00:00]}
Bf5 {[%emt 0:00:00]} 5. Ng3 {[%emt 0:00:00]} Bg6 {[%emt 0:00:00]} 6. h4 {[%emt
0:00:00]} h6 {[%emt 0:00:00]} 7. Nf3 {[%emt 0:00:01]} Nd7 {[%emt 0:00:06]} 8.
h5 {[%emt 0:00:02]} Bh7 {[%emt 0:00:01]} 9. Bd3 {[%emt 0:00:02]} Bxd3 {[%emt 0:
00:03]} 10. Qxd3 {[%emt 0:00:02]} e6 {[%emt 0:00:01]} 11. Bd2 {[%emt 0:00:02]}
Ngf6 {[%emt 0:00:03]} 12. O-O-O {[%emt 0:00:03]} Bd6 {[%emt 0:00:01]} 13. Kb1 {
[%emt 0:02:08]} Qc7 {[%emt 0:00:43]} 14. Ne4 {[%emt 0:00:08]} Nxe4 {[%emt 0:00:
03]} 15. Qxe4 {[%emt 0:00:02]} Nf6 {[%emt 0:00:01]} 16. Qe2 {[%emt 0:00:05]}
O-O-O {[%emt 0:00:03]} 17. g3 {[%emt 0:01:26]} Rhe8 {[%emt 0:02:09]} 18. Ne5 {
[%emt 0:00:21]} Bxe5 {[%emt 0:03:13]} 19. dxe5 {[%emt 0:00:05]} Nd5 {[%emt 0:
00:01]} 20. c4 {[%emt 0:01:27]} Ne7 {[%emt 0:00:01]} 21. Bc3 {[%emt 0:01:26]}
c5 {[%emt 0:01:46]} 22. Qg4 {[%emt 0:01:05]} Rxd1+ {[%emt 0:00:44]} 23. Rxd1 {
[%emt 0:00:01]} Rd8 {[%emt 0:00:01]} 24. Rxd8+ {[%emt 0:00:34]} Qxd8 {[%emt 0:
00:02]} 25. Kc2 {[%emt 0:00:06]} Qf8 {[%emt 0:03:31]} 26. Qe4 {[%emt 0:01:29]}
g6 {[%emt 0:01:09]} 27. Qf3 {[%emt 0:01:28]} gxh5 {[%emt 0:01:02]} 28. Qxh5 {
[%emt 0:00:39]} Qg7 {[%emt 0:00:01]} 29. Kb3 {[%emt 0:02:28]} Nc6 {[%emt 0:04:
18]} 30. Qd1 {[%emt 0:00:43]} Qf8 {[%emt 0:01:07]} 31. Qd2 {[%emt 0:01:36]} Nb8
{[%emt 0:02:25]} 32. g4 {[%emt 0:00:57]} Nd7 {[%emt 0:00:33]} 33. a4 {[%emt 0:
00:55]} Qg7 {[%emt 0:00:42]} 34. f3 {[%emt 0:03:50]} Qg6 {[%emt 0:00:01]} 35.
Qd6 {[%emt 0:03:11]} h5 {[%emt 0:02:47]} 36. Ba5 {[%emt 0:01:11]} b6 {[%emt 0:
00:01]} 37. gxh5 {[%emt 0:01:11]} Qxh5 {[%emt 0:00:26]} 38. Qc6+ {[%emt 0:00:
01]} Kd8 {[%emt 0:00:01]} 39. Bc3 {[%emt 0:00:01]} a5 {[%emt 0:00:35]} 40. Qe4
{[%emt 0:00:08]} Kc7 {[%emt 0:00:40]} 41. Qa8 {[%emt 0:00:58]} Qf5 {[%emt 0:01:
01]} 42. Qa7+ {[%emt 0:00:01]} Kc8 {[%emt 0:00:11]} 43. Qa8+ {[%emt 0:00:02]}
Kc7 {[%emt 0:00:15]} 44. Qa7+ {[%emt 0:00:01]} Kd8 {[%emt 0:00:00]} 45. Qa8+ {
[%emt 0:00:02]} Ke7 {[%emt 0:00:17]} 46. Qc6 {[%emt 0:00:36]} Qd3 {[%emt 0:00:
10]} 47. Qb7 {[%emt 0:00:23]} Qd1+ {[%emt 0:00:41]} 48. Ka3 {[%emt 0:00:01]}
Qd3 {[%emt 0:00:01]} 49. Kb3 {[%emt 0:00:01]} Kf8 {[%emt 0:00:06]} 50. Qc7 {
[%emt 0:00:10]} Ke7 {[%emt 0:01:02]} 51. Qb7 {[%emt 0:00:02]} Kd8 {[%emt 0:00:
10]} 52. Qc6 {[%emt 0:00:34]} Qd1+ {[%emt 0:00:21]} 53. Ka3 {[%emt 0:00:02]}
Qd3 {[%emt 0:00:04]} 1/2-1/2